Cogmind - Beta 10.1 @@@ ROGUE MODE // 2020.10.24 @ 14:46:54 Player: FluffyBetr Result: Destroyed by P-60 Hacker with Shock Rifle Performance ------------- Evolutions (3) 1500 Regions Visited (6) 1200 Robots Destroyed (41) 205 Value Destroyed (1291) 1291 Prototype IDs (1) 20 Alien Tech Used (0) 0 Bonus (512) 512 TOTAL SCORE: 4728 Bonus ------- Follower Combat Kills 512 Cogmind --------- Core Integrity 0/700 Matter 300/300 Energy 100/100 System Corruption 14% Temperature Cool (0) Movement Core (50) Location -7/Factory Parts ------- > --- POWER (2) -------- (None) > --- PROPULSION (4) --- (None) > --- UTILITY (4) ------ Improved Utility Shielding Improved Reclamation Unit > --- WEAPON (3) ------- (None) > --- INVENTORY (4) ---- Improved Cesium-ion Thruster Improved Reclamation Unit Peak State ------------ > --- POWER ------------ Light Ion Engine Deuterium Engine > --- PROPULSION ------- Aluminum Leg Aluminum Leg Carbon-fiber Leg Gravmag System > --- UTILITY ---------- Small Storage Unit Improved Sensor Array Improved Terrain Scanner Improved Light Armor Plating > --- WEAPON ----------- Particle Gun Cooled Particle Cannon Advanced Assault Cannon > --- INVENTORY -------- Light Angular Momentum Engine Wheel Wheel Improved Utility Shielding [Rating: 33] Favorites ----------- Power Deuterium Engine Engine Deuterium Engine Power Core Light Nuclear Core Propulsion Aluminum Leg Leg Aluminum Leg Wheel Wheel Hover Unit Gravmag System Utility Small Storage Unit Device Improved Heat Sink Storage Small Storage Unit Processor Improved Terrain Scan Processor Protection Improved Utility Shielding Weapon Light Assault Rifle Energy Gun Particle Gun Energy Cannon Cooled Particle Cannon Ballistic Gun Light Assault Rifle Ballistic Cannon Assault Cannon Impact Weapon Hammer Build | -11 -10 -10 -9 -8 -8 -7 ------- Run | Scr Mat Min Mat Mat Sto Fac Slots Evolved 6 | . . . 2 2 . 2 Power 1 | . . . . . . 1 Propulsion 2 | . . . 2 . . . Utility 2 | . . . . 1 . 1 Weapon 1 | . . . . 1 . . Parts Attached 67 | 6 1 . 6 17 . 37 Power 8 | 1 . . 1 2 . 4 Engine 7 | 1 . . 1 2 . 3 Core 1 | . . . . . . 1 Reactor . | . . . . . . . Propulsion 24 | 2 . . 3 6 . 13 Treads . | . . . . . . . Leg 17 | 2 . . 3 6 . 6 Wheel 4 | . . . . . . 4 Hover 3 | . . . . . . 3 Flight . | . . . . . . . Utility 12 | 1 . . 1 3 . 7 Device 7 | . . . 1 2 . 4 Storage 1 | 1 . . . . . . Processor 1 | . . . . . . 1 Hackware . | . . . . . . . Protection 3 | . . . . 1 . 2 Artifact . | . . . . . . . Weapon 23 | 2 1 . 1 6 . 13 Energy Gun 8 | 1 1 . 1 2 . 3 Energy Cannon 3 | . . . . . . 3 Ballistic Gun 9 | 1 . . . 2 . 6 Ballistic Cannon 2 | . . . . 1 . 1 Launcher . | . . . . . . . Special Weapon . | . . . . . . . Impact Weapon 1 | . . . . 1 . . Slashing Weapon . | . . . . . . . Piercing Weapon . | . . . . . . . Special Melee Weapon . | . . . . . . . Unidentified Prototypes 1 | . . . . . . 1 Parts Lost 62 | . 1 2 1 15 . 43 Power 8 | . . 1 . 2 . 5 Propulsion 23 | . . . 1 6 . 16 Utility 9 | . . . . 2 . 7 Weapon 22 | . 1 1 . 5 . 15 Highest Loss Streak 14 | . 1 2 1 5 . 14 Average Slot Usage (%) 79 | . 83 85 80 84 100 68 Engine 6 | . 14 14 4 7 9 4 Leg 24 | . 28 28 42 29 36 10 Wheel 1 | . . . . . . 4 Hover 1 | . . . . . . 5 Device 9 | . . . 4 10 18 10 Storage 8 | . 14 14 11 9 9 4 Protection 2 | . . . . 2 . 3 Energy Gun 6 | . 12 14 6 10 . 3 Ballistic Gun 8 | . 14 14 11 4 9 8 Ballistic Cannon 2 | . . . . 2 9 2 Impact Weapon 3 | . . . . 9 9 1 Naked Turns . | . . . . . . . Heaviest Build 38 | 11 11 11 11 24 23 38 Greatest Support 40 | 20 20 20 40 40 30 35 Greatest Overweight (x) 7 | 1 . . . 7 . 5 Average Overweight (x) . | . . . . . . . Largest Inventory Capacity 6 | 6 6 6 6 6 6 6 Average Capacity 5 | 5 6 6 6 6 6 5 Most Carried 6 | 4 4 5 5 6 6 6 Average Carried 3 | 1 2 2 3 4 6 3 Final Capacity 6 | 6 6 6 6 6 6 4 Final Carried 6 | 2 2 5 5 6 6 2 Class Distribution -------------------- 43% | Scavenger-Mutant 33% | Mutant 9% | Scavenger-Skirmisher 6% | Tank 3% | Scavenger-Scout 3% | Commander-Mutant Dominant Class ---------------- Mutant | -10/Materials Mutant | -10/Mines Mutant | -9/Materials Scavenger-Mutant | -8/Materials Scavenger-Mutant | -8/Storage Scavenger-Skirmisher | -7/Factory Resources | -11 -10 -10 -9 -8 -8 -7 ----------- Run | Scr Mat Min Mat Mat Sto Fac Matter Collected 1075 | 245 35 2 80 275 6 432 Remotely . | . . . . . . . Salvage Created 1301 | . 99 20 204 409 . 569 Parts 73 | . 4 2 15 24 . 28 Haulers Intercepted 1 | . . . 1 . . . Recyclers Shooed 1 | . . . . . . 1 Parts Field Recycled . | . . . . . . . Retrieved Matter . | . . . . . . . Parts Self-Destructed . | . . . . . . . Prevented . | . . . . . . . Kills | -11 -10 -10 -9 -8 -8 -7 ------- Run | Scr Mat Min Mat Mat Sto Fac Combat Hostiles Destroyed 34 | . 3 1 5 12 . 13 Melee 2 | . . . . 2 . . Guns 22 | . 3 1 5 5 . 8 Cannons 5 | . . . . 2 . 3 AOE 2 | . . . . 2 . . Classes Destroyed 9 | . 2 . 2 2 . 3 Builder 1 | . . . . . . 1 Hauler 1 | . . . 1 . . . Watcher 5 | . . . 2 3 . . Swarmer 13 | . 1 1 3 6 . 2 Grunt 14 | . 2 . 2 4 . 6 Duelist 1 | . . . . 1 . . Sentry 3 | . . . . . . 3 Hunter 1 | . . . . 1 . . Programmer 2 | . . . . . . 2 Best Kill Streak 6 | . 2 1 6 3 . 2 Combat Bots Only 5 | . 2 1 5 2 . 2 Max Kills in Single Turn 2 | . 1 1 1 2 . 1 Gunslinging . | . . . . . . . Exploded 2 | . . . . 2 . . Melee 1 | . . . . 1 . . Uniques/NPCs Destroyed . | . . . . . . . Combat | -11 -10 -10 -9 -8 -8 -7 -------- Run | Scr Mat Min Mat Mat Sto Fac Damage Taken 6174 | . 234 61 330 1816 82 3651 Core 1420 | . 60 27 85 510 26 712 Absorbed by Shields 3 | . . . . . . 3 Core Remaining (%) 61 | 100 . 65 78 . 2 . Volleys Fired 143 | . 15 2 36 34 1 55 Largest 3 | . 2 2 2 2 2 3 Hottest 153 | . 60 60 85 100 64 153 Shots Fired 272 | . 23 4 49 58 2 136 Gun 222 | . 23 4 49 41 1 104 Cannon 50 | . . . . 17 1 32 Launcher . | . . . . . . . Special . | . . . . . . . Kinetic 180 | . 15 2 36 36 2 89 Thermal 63 | . 8 2 13 . . 40 Explosive . | . . . . . . . Electromagnetic 29 | . . . . 22 . 7 Robot Hit Streak 19 | . 9 12 7 6 7 19 Robot Miss Streak 7 | . 3 . 7 3 1 3 Penetration Max . | . . . . . . . Secondary Targets 1 | . . . 1 . . . Max Gunslinging Chain 1 | . . . 1 . . . Shots Hit Robots 200 | . 14 3 27 52 1 103 Core Hits 74 | . 6 2 15 22 . 29 Critical Hits 1 | . . . . . . 1 Critical Kills . | . . . . . . . Critical Parts Destroyed 1 | . . . . . . 1 Melee Attacks 44 | . . . . 25 . 19 Impact 44 | . . . . 25 . 19 Slashing . | . . . . . . . Piercing . | . . . . . . . Sneak Attacks . | . . . . . . . Combat Hostiles . | . . . . . . . Follow-up Attacks . | . . . . . . . Damage Inflicted 3294 | . 144 28 262 1156 6 1698 Guns 1679 | . 144 28 262 466 6 773 Cannons 885 | . . . . 230 . 655 Explosions 125 | . . . . 125 . . Melee 595 | . . . . 335 . 260 Ramming 10 | . . . . . . 10 Kinetic 1568 | . 66 6 165 494 6 831 Thermal 773 | . 78 22 97 125 . 451 Explosive . | . . . . . . . Electromagnetic 348 | . . . . 202 . 146 Impact 595 | . . . . 335 . 260 Slashing . | . . . . . . . Piercing . | . . . . . . . Highest Corruption 14 | . . . . . . 14 Average Corruption 9 | . . . . . . 9 Corruption Purged . | . . . . . . . Effects 14 | . . . . . . 14 Message Errors 4 | . . . . . . 4 Matter Fused 2 | . . . . . . 2 Heat Flow Errors 2 | . . . . . . 2 Misfires 1 | . . . . . . 1 Misdirections 3 | . . . . . . 3 Targeting Errors 2 | . . . . . . 2 Overload Shots . | . . . . . . . Overflow Damage 70 | . . . . 58 . 12 Projectiles . | . . . . . . . Explosions 15 | . . . . 15 . . Melee 55 | . . . . 43 . 12 Knockbacks 5 | . . . . 5 . . Impact 1 | . . . . 1 . . Kinetic 3 | . . . . 3 . . Secondary 1 | . . . . 1 . . Self-Inflicted Damage 72 | . . . . 67 . 5 Shots 2 | . . . . 2 . . Rammed 3 | . . . . . . 3 Targets Rammed 3 | . . . . . . 3 Kicked . | . . . . . . . Crushed . | . . . . . . . Highest Temperature 589 | . 82 40 126 126 . 589 Average Temperature 125 | . 38 20 59 27 . 192 Received Heat Transfer 1699 | . 90 18 81 459 18 1033 Effects 13 | . . . . . . 13 Shutdowns 3 | . . . . . . 3 Energy Bleed 2 | . . . . . . 2 Interference 3 | . . . . . . 3 Matter Decay 1 | . . . . . . 1 Short Circuit 2 | . . . . . . 2 Damage (minor) 2 | . . . . . . 2 Siege Activations . | . . . . . . . Robots Corrupted 1 | . . . . . . 1 Combat Hostiles 1 | . . . . . . 1 Parts Fried 2 | . . . . 1 . 1 Impact Corruptions 6 | . . . . 4 . 2 Robots Melted . | . . . . . . . Combat Hostiles . | . . . . . . . Parts Melted 1 | . . . . . . 1 Heat Transferred 1448 | . 175 50 222 150 . 851 Parts Sabotaged . | . . . . . . . Parts Stolen . | . . . . . . . Parts Stripped . | . . . . . . . Power Chain Reactions 2 | . . . . 2 . . Missiles Intercepted . | . . . . . . . Alert | -11 -10 -10 -9 -8 -8 -7 ------- Run | Scr Mat Min Mat Mat Sto Fac Peak Influence 613 | . 59 44 177 202 613 284 Initial 269 | . . 7 1 . 85 269 Average 114 | . 24 12 92 65 366 119 Maximum Alert Level 2 | . . . . 1 2 1 Low Security (%) 77 | 100 100 100 100 93 23 65 Level 1 17 | . . . . 6 28 34 Level 2 5 | . . . . . 47 . Level 3 . | . . . . . . . Level 4 . | . . . . . . . Level 5 . | . . . . . . . High Security . | . . . . . . . Max Security . | . . . . . . . Squads Dispatched 13 | . 2 . 1 2 5 3 Investigation 3 | . . . 1 . 1 1 Extermination 1 | . . . . . . 1 Reinforcement 5 | . 2 . . 2 1 . Assault . | . . . . . . . Garrison 4 | . . . . . 3 1 Intercept . | . . . . . . . Construction Impeded . | . . . . . . . Haulers Reinforced . | . . . . . . . Stealth | -11 -10 -10 -9 -8 -8 -7 --------- Run | Scr Mat Min Mat Mat Sto Fac Distress Signals 4 | . . . . 1 3 . Communications Jammed . | . . . . . . . Distress Signals . | . . . . . . . Times Spotted 98 | . 10 4 10 36 10 28 Peak Tracking Total 7 | . 4 3 5 5 4 7 Tactical Retreats 9 | . 1 . . 7 . 1 Traps | -11 -10 -10 -9 -8 -8 -7 ------- Run | Scr Mat Min Mat Mat Sto Fac Traps Triggered 5 | . . . 1 . 1 3 Indirectly . | . . . . . . . Trap Hack Attempts . | . . . . . . . Triggered . | . . . . . . . Disarmed . | . . . . . . . Reprogrammed . | . . . . . . . Reused . | . . . . . . . Traps Extracted . | . . . . . . . Installed . | . . . . . . . Triggered . | . . . . . . . Machines | -11 -10 -10 -9 -8 -8 -7 ---------- Run | Scr Mat Min Mat Mat Sto Fac Machines Disabled 2 | . . . . 1 1 . Max in Single Turn 1 | . . . . 1 . . Machines Sabotaged . | . . . . . . . Garrisons Compromised . | . . . . . . . Overloaded Fab Kills . | . . . . . . . Fab Network Shutdowns . | . . . . . . . Hacking | -11 -10 -10 -9 -8 -8 -7 --------- Run | Scr Mat Min Mat Mat Sto Fac Machines Accessed 8 | . 3 . . 1 3 1 Terminals 6 | . 2 . . 1 2 1 Fabricators . | . . . . . . . Repair Stations . | . . . . . . . Recycling Units 2 | . 1 . . . 1 . Scanalyzers . | . . . . . . . Garrison Access . | . . . . . . . Total Hacks 14 | . 7 . . 1 4 2 Successful 11 | . 5 . . 1 4 1 Failed 3 | . 2 . . . . 1 Catastrophic . | . . . . . . . Database Lockouts . | . . . . . . . Manual . | . . . . . . . Terminals 8 | . 2 . . 1 3 2 Fabricators . | . . . . . . . Repair Stations . | . . . . . . . Recycling Units 6 | . 5 . . . 1 . Scanalyzers . | . . . . . . . Garrison Access . | . . . . . . . Terminal Hacks 7 | . 2 . . 1 3 1 Alert Level 1 | . . . . . 1 . Unreport Threat 2 | . 1 . . . 1 . Locate Traps 2 | . 1 . . 1 . . Recall Extermination 1 | . . . . . 1 . Recall Assault 1 | . . . . . . 1 Fabricator Hacks . | . . . . . . . Repair Station Hacks . | . . . . . . . Recycling Unit Hacks 4 | . 3 . . . 1 . Recycle Component 2 | . 2 . . . . . Process 1 | . 1 . . . . . Retrieve Components 1 | . . . . . 1 . Scanalyzer . | . . . . . . . Garrison Access Hacks . | . . . . . . . Unauthorized Hacks . | . . . . . . . Terminals . | . . . . . . . Fabricators . | . . . . . . . Repair Stations . | . . . . . . . Recycling Units . | . . . . . . . Scanalyzers . | . . . . . . . Garrison Access . | . . . . . . . Data Cores Recovered . | . . . . . . . Used . | . . . . . . . Hacking Detections 2 | . . . . 1 1 . Full Trace Events . | . . . . . . . Feedback Events . | . . . . . . . Feedback Blocked . | . . . . . . . Robot Schematics Acquired . | . . . . . . . Robots Built . | . . . . . . . Matter . | . . . . . . . Time . | . . . . . . . Total Robot Build Rating . | . . . . . . . Part Schematics Acquired . | . . . . . . . Parts Built . | . . . . . . . Matter . | . . . . . . . Time . | . . . . . . . Total Part Build Rating . | . . . . . . . Parts Repaired . | . . . . . . . Time . | . . . . . . . Parts Recycled 2 | . 2 . . . . . Recycled Matter 162 | . 162 . . . . . Retrieved Matter . | . . . . . . . Retrieved Components . | . . . . . . . Parts Scanalyzed . | . . . . . . . Part Schematics Acquired . | . . . . . . . Parts Damaged . | . . . . . . . Bothacking | -11 -10 -10 -9 -8 -8 -7 ------------ Run | Scr Mat Min Mat Mat Sto Fac Used RIF Installer . | . . . . . . . Robots Hacked . | . . . . . . . Non-combat . | . . . . . . . Combat . | . . . . . . . Robot Hacks Applied . | . . . . . . . Relay Couplers Released . | . . . . . . . Robots Rewired . | . . . . . . . Allies Hacked . | . . . . . . . Hacks Repelled . | . . . . . . . Allies | -11 -10 -10 -9 -8 -8 -7 -------- Run | Scr Mat Min Mat Mat Sto Fac Total Allies 13 | . . 3 . . 10 . Largest Group 10 | . . 3 . . 10 4 Highest-Rated Group 173 | . . 40 . . 173 64 Highest-Rated Ally 29 | . . 16 . . 29 16 Total Orders . | . . . . . . . Ally Attacks 103 | . . 5 . . 95 3 Total Damage 1394 | . . 33 . . 1330 31 Kills 22 | . . 2 . . 19 1 Allies Corrupted . | . . . . . . . Allies Melted . | . . . . . . . Intel | -11 -10 -10 -9 -8 -8 -7 ------- Run | Scr Mat Min Mat Mat Sto Fac Robot Analysis Total . | . . . . . . . Derelict Logs Recovered . | . . . . . . . Drone Launches . | . . . . . . . Drone Recoveries . | . . . . . . . Exploration | -11 -10 -10 -9 -8 -8 -7 ------------- Run | Scr Mat Min Mat Mat Sto Fac Turns Passed 3021 | 64 222 142 402 744 326 1121 Spaces Moved 1873 | 52 143 105 261 378 201 733 Core 112 | 18 . . . 5 . 89 Treads . | . . . . . . . Legs 1381 | 34 143 105 261 373 201 264 Wheels 265 | . . . . . . 265 Hover 115 | . . . . . . 115 Flight . | . . . . . . . Fastest Speed 50 | 50 120 120 120 120 120 50 Average Speed 115 | 98 120 120 120 125 120 107 Slowest Speed 400 | 150 120 120 120 400 120 300 Overloaded Moves . | . . . . . . . Propulsion Burnouts . | . . . . . . . Robots Hopped . | . . . . . . . Cave-ins Triggered . | . . . . . . . Exploration Rate (%) 23 | 4 29 19 23 23 45 21 Regions Visited 6 Branch Regions 2 Pre-discovered Areas . | . . . . . . . Known Exits Taken . | . . . . . . . Unknown Exits Taken 6 | 1 1 1 1 1 1 . Scrap Searched . | . . . . . . . Spaces Dug . | . . . . . . . Terrain Destroyed 13 | . . . . 11 . 2 Melee . | . . . . . . . Projectile 5 | . . . . 3 . 2 AOE 8 | . . . . 8 . . Terrain Rammed . | . . . . . . . Walls Destroyed . | . . . . . . . Machines Disabled . | . . . . . . . Actions | -11 -10 -10 -9 -8 -8 -7 --------- Run | Scr Mat Min Mat Mat Sto Fac Total 2432 | 65 173 117 308 555 285 929 Wait 223 | . 12 8 . 78 77 48 Move 1867 | 51 142 104 260 377 200 733 Hop . | . . . . . . . Pick Up 74 | 8 3 3 6 21 1 32 Fast Attach . | . . . . . . . Attach 66 | 6 1 . 6 17 . 36 Detach . | . . . . . . . Swap 1 | . . . . . . 1 Drop 6 | . . . . 3 1 2 Fire 143 | . 15 2 36 34 1 55 Melee 44 | . . . . 25 . 19 Ram 3 | . . . . . . 3 Kick . | . . . . . . . Crush . | . . . . . . . Escape Stasis 5 | . . . . . 5 . Rewire . | . . . . . . . Trap . | . . . . . . . Miscellaneous . | . . . . . . . Route ------- -11/Scrapyard -10/Materials -10/Mines -9/Materials -8/Materials -8/Storage -7/Factory History --------- Turn | Location | Event 11 | -11/Scrapyard | Discovered new exit (range 16) 65 | -11/Scrapyard | Entered Materials 277 | -10/Materials | Discovered new exit (range 9) 287 | -10/Materials | Entered Mines 302 | -10/Mines | Build established: Mutant 330 | -10/Mines | Met a Derelict bent on vengeance 349 | -10/Mines | Assisted by bots powering up and referring to "LRC-V3" 400 | -10/Mines | Discovered new exit (range 9) 429 | -10/Mines | Entered Materials 429 | -9/Materials | Evolved 2 slots: Propulsion x2 794 | -9/Materials | Discovered new exit (range 13) 831 | -9/Materials | Entered another Materials area 831 | -8/Materials | Evolved 2 slots: Utility x1, Weapon x1 947 | -8/Materials | Build established: Scavenger-Mutant 1318 | -8/Materials | Core integrity fell below 50% 1343 | -8/Materials | Lost 4 parts (2n1u1w) 1408 | -8/Materials | Lost 5 parts (1p3n1w) 1493 | -8/Materials | Core integrity fell below 20% 1569 | -8/Materials | Discovered new exit (range 6) 1575 | -8/Materials | Entered Storage 1639 | -8/Storage | Assisted by bots powering up and referring to "LRC-V3" 1652 | -8/Storage | Garrison activated, responded to threat 1887 | -8/Storage | Discovered new exit (range 9) 1901 | -8/Storage | Entered Factory 1901 | -7/Factory | Accompanied by 4 allies 1901 | -7/Factory | Evolved 2 slots: Power x1, Utility x1 1995 | -7/Factory | Garrison activated, responded to threat 2036 | -7/Factory | Lost 8 parts (1p3n2u2w) 2134 | -7/Factory | Lost 3 parts (1n2w) 2349 | -7/Factory | Lost 5 parts (1p2n2w) 2640 | -7/Factory | Core integrity fell below 50% 2670 | -7/Factory | Lost 14 parts (3p4n4u3w) 2788 | -7/Factory | Lost 4 parts (2n2w) 2854 | -7/Factory | System corruption reached 10% 2947 | -7/Factory | Core integrity fell below 20% 2971 | -7/Factory | Lost 4 parts (2n2w) 3022 | -7/Factory | Destroyed by P-60 Hacker with Shock Rifle Last Messages --------------- System corrupted: Shotgun targeting data glitched. System corrupted: Shotgun misfires. Q7G CLEPHJJTDMUV Slammed into K-01 Serf. Map ----- +----------------------------------------------------+ | ???????????????????????????????????# """ """ #? | | ???????????????????????????????????# """ """ #? | | ???????????????????????????????????# #? | | ?????????????????# ???????????????# """ """ #? | | ?????????????????+ ??????????????# """ """ #? | | ?????????????????# ?????????????# """ """ #? | | ?????????????????# ?????????????# #? | | ?????????????????# ????????????# #? | | ?????????????????# ????????????#######+####### | | ?????????????????# ###+####????????# | | ?????????????????# #????????# ## | | ?????????????????# #????????# "" #? | | ?????????????????+ ########## "" #? | | ?????????????????# % % "T #? | | ?????????????????# p########## "" #? | | ?????????????????######## #????????# "" #? | | ????????????????????????# k#????????# #? | | ????????????????????????# #????????# #? | | ????????????????????????# #????????# / #? | | ????????????????????????# +????????# ####? | | ????????????????????????# #????????# #???? | | ????????????????????????# #????????# #???? | | ?????????????###+##+##### #????????# ##### | | ?????????? k #????????# | | ?????????????????## #????????# | | ??????????????????# @ +????????# | | ??????????????????# #????????# | | ??????????????????####### #????????# | | ????????????????????????# #????????######## | | ????????????????????????# #???????????????# | | ????????????????????????# #???????????????# | | ????????????????????????# #???????????????# | | ????????????????????????+ #???????????????# | | ????????????????????????# #???????????????# | | ????????????????????????? #???????????????# | | ????????????????????????? #???????????????# | | ?????????????????????????# ##???????????????# | | ?????????????????????????? #????????????????# | | ?????????????????????????? #????????????????# | | ??????????????????????????^ #????????????????# | | ?????????????????????????? ??????????????????? | | ????????????????????????????????????????????????? | | ?????????????????????????????????????????????????? | | ?????????????????????????????????????????????????? | | ?????????????????????????????????????????????????? | | ?????????????????????????????????????????????????? | | ?????????????????????????????????????????????????? | | ?????????????????????????????????????????????????? | | ?????????????????????????????????????????????????? | | ?????????????????????????????????????????????????? | +----------------------------------------------------+ Best States ------------- Heat Dissipation 62 Energy Generation 23 Energy Capacity 335 Matter Stores 300 Matter Capacity 300 Sight Range 16 Robot Scan Range 13 Terrain Scan Range 16 Terrain Scan Density 110 Armor Coverage 150 Utility Shielding 66 Reclamation Efficiency 15 Evasion (%) 50 Item Schematics ----------------- None Robot Schematics ------------------ None Fabricated ------------ Nothing Alien Tech Used ----------------- None Achievements -------------- Omniscient Cartographer Challenges ------------ None Game ------ Seed GammaSalvageClaws Manual? 0 Play Time 00:44:17 Cumulative 8.6 hours Start 2020.10.11 @ 14:32:50 End 2020.10.24 @ 14:46:54 Sessions 5 Manual Loads 0 Difficulty Rogue Special Mode None Game No. 15 Rogue 12 Adventurer 3 Explorer 0 Win Type - Total 0 Types 0/0/0/0/0/0/0/0/0 Lore% 8 Gallery% 17 Achievement% 12 Wizard Run 0 Options --------- ASCII 0 Keyboard 0 Movement Numpad Keybinds 0 Fullscreen 2 Font 14/X11Bold Map View 84x54 Tactical HUD 0 Map Filters NONE Filters NONE Steam 1 RUN: eb029453-2df4-4fa5-83db-7be715bb7c5d